bitfinex/quotes_BTCUSD_20220226
["timestamp","ask_amount","ask_price","bid_price","bid_amount"]
[1645850062820,0.025669,39426.0,39425.0,0.30243943]
[1645850064269,0.024669,39426.0,39425.0,0.30243943]
[1645850064669,0.025669,39426.0,39425.0,0.30243943]
[1645850065870,0.024669,39426.0,39425.0,0.30243943]
[1645850066671,0.025669,39426.0,39425.0,0.30243943]
[1645850067925,0.024669,39426.0,39425.0,0.30243943]
[1645850068830,0.025669,39426.0,39425.0,0.30243943]
[1645850069826,0.21372921,39429.0,39428.0,0.02763895]
[1645850070527,0.21372921,39430.0,39428.0,0.02763895]
[1645850070726,0.26703713,39432.0,39428.0,0.02763895]
[1645850070727,0.21372921,39432.0,39428.0,0.02763895]
[1645850072472,0.21372921,39433.0,39428.0,0.02763895]
[1645850072672,0.001,39432.0,39428.0,0.02763895]
[1645850073476,0.21472921,39432.0,39428.0,0.02763895]
[1645850073878,0.21372921,39432.0,39428.0,0.02763895]
[1645850074822,0.21472921,39432.0,39428.0,0.02763895]
[1645850075222,0.001,39432.0,39428.0,0.02763895]
[1645850076024,0.26372921,39433.0,39428.0,0.02763895]
[1645850076631,0.26472921,39433.0,39428.0,0.02763895]
[1645850078026,0.26372921,39433.0,39428.0,0.02763895]
[1645850078665,0.26472921,39433.0,39428.0,0.02763895]
[1645850079467,0.21372921,39432.0,39428.0,0.02763895]
[1645850080268,0.26372921,39433.0,39428.0,0.02763895]
[1645850080469,0.21372921,39432.0,39428.0,0.02763895]
[1645850080668,0.21672921,39432.0,39428.0,0.02763895]
[1645850081877,0.21672921,39432.0,39428.0,0.12763895]
[1645850081878,0.003,39432.0,39428.0,0.12763895]
[1645850082069,0.21372921,39434.0,39428.0,0.12763895]
[1645850082321,0.21372921,39434.0,39428.0,0.02763895]
[1645850082522,0.26372921,39434.0,39428.0,0.02763895]
[1645850083320,0.21372921,39434.0,39428.0,0.02763895]
[1645850083520,1.22068704,39435.0,39428.0,0.02763895]
[1645850084122,1.22032921,39435.0,39428.0,0.02763895]
[1645850084426,1.22068705,39435.0,39428.0,0.02763895]
[1645850085322,1.22032921,39435.0,39428.0,0.02763895]
[1645850085521,1.22068705,39435.0,39428.0,0.02763895]
[1645850085971,0.21372921,39434.0,39428.0,0.02763895]
[1645850086774,0.003,39434.0,39428.0,0.02763895]
[1645850088073,1.22067551,39435.0,39428.0,0.02763895]
[1645850088975,1.22032921,39435.0,39428.0,0.12763895]
[1645850089175,1.22067551,39435.0,39429.0,0.34720396]
[1645850089376,1.0069463,39435.0,39429.0,0.34720396]
[1645850089581,1.0069463,39435.0,39430.0,0.1]
[1645850090228,1.0066,39435.0,39430.0,0.1]
[1645850090428,1.00694747,39435.0,39430.0,0.1]
[1645850090829,1.00994747,39435.0,39430.0,0.1]
[1645850091432,1.0096,39435.0,39430.0,0.1]
[1645850091629,1.00994747,39435.0,39428.0,0.15299895]
[1645850092029,1.00694747,39435.0,39429.0,0.34720396]
[1645850092429,1.05694747,39435.0,39430.0,0.02536]
[1645850092631,0.05,39435.0,39430.0,0.12536]
[1645850092830,0.04977575,39435.0,39431.0,0.34720396]
[1645850093031,0.00034747,39435.0,39431.0,0.34720396]
[1645850093673,0.21372921,39439.0,39431.0,0.34720396]
[1645850094069,0.00039096,39435.0,39431.0,0.34708568]
[1645850094668,0.00039096,39435.0,39431.0,0.34808568]
[1645850095068,0.26372921,39439.0,39431.0,0.34808568]
[1645850095267,0.00039096,39435.0,39431.0,0.34808568]
[1645850096168,0.26372921,39439.0,39431.0,0.34708568]
[1645850096367,0.00015132,39435.0,39431.0,0.34708568]
[1645850096570,0.00015132,39435.0,39430.0,0.12536]
[1645850096768,0.00015132,39435.0,39430.0,0.02536]
[1645850096968,0.00015132,39435.0,39429.0,0.37256396]
[1645850097220,0.00015132,39435.0,39430.0,0.12536]
[1645850097425,0.26472921,39439.0,39432.0,0.1]
[1645850097720,0.26472921,39439.0,39430.0,0.02536]
[1645850097721,0.00039149,39435.0,39433.0,0.44720396]
[1645850098021,0.00039149,39435.0,39433.0,0.1]
[1645850098621,0.21372921,39440.0,39433.0,0.1]
[1645850098821,0.002,39435.0,39433.0,0.1]
[1645850099823,0.002,39435.0,39429.0,0.02536]
[1645850100029,0.00039149,39436.0,39429.0,0.02536]
[1645850100225,0.00039149,39436.0,39428.0,0.01571661]
[1645850100825,0.00139149,39436.0,39428.0,0.01571661]
[1645850101068,0.001,39436.0,39429.0,0.02536]
[1645850101268,0.00039149,39435.0,39429.0,0.02536]
[1645850102168,0.21372921,39439.0,39429.0,0.02536]
[1645850102368,0.00039149,39435.0,39429.0,0.02536]
[1645850102969,0.00039149,39435.0,39428.0,0.01571661]
[1645850103371,0.24832165,39437.0,39428.0,0.01571661]
[1645850103572,0.00039149,39435.0,39428.0,0.01571661]
[1645850105719,0.46205086,39437.0,39428.0,0.01571661]
[1645850106117,0.00039149,39435.0,39428.0,0.01571661]
[1645850106919,0.46205086,39437.0,39428.0,0.01571661]
[1645850107418,0.00039149,39435.0,39428.0,0.01571661]
[1645850108217,0.26372921,39436.0,39428.0,0.01571661]
[1645850108470,0.00039149,39435.0,39428.0,0.01571661]
[1645850109472,0.26872921,39436.0,39428.0,0.01571661]
[1645850109673,0.2141207,39435.0,39428.0,0.01571661]
[1645850110671,0.21372921,39435.0,39428.0,0.01571661]
[1645850110871,0.2141207,39435.0,39428.0,0.01571661]
[1645850111673,0.21372921,39434.0,39428.0,0.01571661]
[1645850111873,0.26372921,39434.0,39428.0,0.01571661]
[1645850112720,0.26672921,39434.0,39428.0,0.01571661]
[1645850114123,0.21372921,39433.0,39428.0,0.01571661]
[1645850114923,0.26372921,39434.0,39428.0,0.01571661]
[1645850118770,0.26672921,39434.0,39428.0,0.01571661]
[1645850120221,0.21372921,39433.0,39428.0,0.01571661]
[1645850120822,0.21572921,39433.0,39428.0,0.01571661]
[1645850121023,0.002,39433.0,39428.0,0.01571661]
[1645850121422,0.21572921,39433.0,39428.0,0.01571661]
[1645850122222,0.21372921,39432.0,39428.0,0.01571661]
[1645850122624,0.17012852,39430.0,39428.0,0.01571661]
[1645850123483,0.16806257,39430.0,39428.0,0.01571661]
[1645850123881,0.43179178,39430.0,39428.0,0.01571661]
[1645850124081,0.0507,39429.0,39428.0,0.01571661]
[1645850124880,0.0527,39429.0,39428.0,0.01571661]
[1645850125281,0.05239475,39429.0,39428.0,0.01571661]
[1645850126082,0.05039475,39429.0,39428.0,0.01571661]
[1645850126784,0.05239475,39429.0,39428.0,0.01571661]
[1645850128017,0.05039475,39429.0,39428.0,0.01571661]
[1645850128716,0.21372921,39431.0,39428.0,0.01571661]
[1645850128918,0.0507,39434.0,39428.0,0.01571661]
[1645850128919,0.21372921,39432.0,39428.0,0.01571661]
[1645850129117,0.21372921,39433.0,39428.0,0.01571661]
[1645850129520,0.21672921,39434.0,39428.0,0.01571661]
[1645850129720,0.26672921,39434.0,39428.0,0.01571661]
[1645850129919,0.26672921,39434.0,39428.0,0.22976518]
[1645850130121,0.2638263,39434.0,39428.0,0.22976518]
[1645850130320,0.00015103,39435.0,39428.0,0.22976518]
[1645850130522,0.26382613,39434.0,39428.0,0.22976518]
[1645850130721,0.00015103,39435.0,39428.0,0.22976518]
[1645850130971,0.05,39434.0,39428.0,0.22976518]
[1645850131178,0.21382599,39434.0,39428.0,0.22976518]
[1645850131375,0.05,39434.0,39428.0,0.22976518]
[1645850131574,0.21381856,39434.0,39428.0,0.22976518]
[1645850131774,0.05,39434.0,39428.0,0.22976518]
[1645850131974,0.2138184,39434.0,39428.0,0.22976518]
[1645850132174,1.32363713,39436.0,39428.0,0.22976518]
[1645850132375,0.05,39434.0,39428.0,0.22976518]
[1645850132573,0.26381844,39434.0,39428.0,0.22976518]
[1645850132775,0.05,39434.0,39428.0,0.22976518]
[1645850133076,0.05039226,39435.0,39429.0,0.21404857]
[1645850133478,0.21382135,39435.0,39429.0,0.21404857]
[1645850133679,0.00039226,39435.0,39429.0,0.21404857]
[1645850133876,0.21421218,39435.0,39429.0,0.21404857]
[1645850134076,0.05039226,39435.0,39429.0,0.21404857]
[1645850134276,0.26421236,39435.0,39429.0,0.21404857]
[1645850134477,0.20722381,39432.0,39429.0,0.21404857]
[1645850134725,0.21381964,39434.0,39433.0,0.24860828]
[1645850134926,0.43064293,39435.0,39433.0,0.24860828]
[1645850135126,0.05,39434.0,39433.0,0.24860828]
[1645850135528,0.21381964,39434.0,39433.0,0.24860828]
[1645850136827,0.21581964,39434.0,39433.0,0.24860828]
[1645850137430,0.002,39434.0,39433.0,0.24860828]
[1645850138031,0.53084932,39435.0,39433.0,0.24860828]
[1645850138232,0.26343103,39435.0,39433.0,0.24860828]
[1645850138472,0.26378998,39435.0,39433.0,0.24860828]
[1645850138674,0.21382124,39434.0,39433.0,0.24860828]
[1645850138876,0.47761122,39435.0,39433.0,0.24860828]
[1645850139075,0.26418019,39435.0,39433.0,0.24860828]
[1645850139473,0.26382124,39435.0,39433.0,0.24860828]
[1645850140075,0.21382124,39434.0,39433.0,0.24860828]
[1645850140776,0.05,39435.0,39433.0,0.24860828]
[1645850140976,0.002,39434.0,39433.0,0.24860828]
[1645850142074,0.21382508,39434.0,39433.0,0.24860828]
[1645850142326,0.26382508,39434.0,39433.0,0.24860828]
[1645850142923,0.26582508,39434.0,39433.0,0.24860828]
[1645850143126,0.052,39434.0,39433.0,0.24860828]
[1645850143324,0.002,39434.0,39433.0,0.24860828]
[1645850144128,0.26382508,39435.0,39433.0,0.24860828]
[1645850144528,0.2641751,39435.0,39433.0,0.24860828]
[1645850145029,0.21382508,39434.0,39433.0,0.24860828]
[1645850148276,0.21292588,39434.0,39433.0,0.24860828]
[1645850150522,0.05034953,39435.0,39433.0,0.24860828]
[1645850150723,0.00034953,39435.0,39433.0,0.24860828]
[1645850151522,0.31703713,39437.0,39433.0,0.24860828]
[1645850151523,0.05,39437.0,39433.0,0.24860828]
[1645850151723,0.26703713,39438.0,39433.0,0.24860828]
[1645850151724,0.00013219,39436.0,39433.0,0.24860828]
[1645850152224,0.31689747,39438.0,39433.0,0.24860828]
[1645850152822,0.31889747,39438.0,39433.0,0.24860828]
[1645850153470,0.26703713,39437.0,39433.0,0.24860828]
[1645850154872,0.26903713,39437.0,39433.0,0.24860828]
[1645850156074,0.26703713,39437.0,39433.0,0.24860828]
[1645850156981,0.26903713,39437.0,39433.0,0.24860828]
[1645850157821,0.002,39437.0,39433.0,0.24860828]
[1645850158022,0.26903713,39437.0,39433.0,0.24860828]
[1645850158222,0.26703713,39437.0,39433.0,0.24860828]
[1645850158426,0.21385216,39435.0,39433.0,0.24860828]
[1645850158923,0.26703713,39437.0,39433.0,0.24860828]
[1645850158924,0.21385216,39437.0,39433.0,0.24860828]
[1645850159629,0.26386371,39438.0,39433.0,0.24860828]
[1645850159823,0.2637125,39438.0,39433.0,0.24860828]
[1645850160224,0.26410625,39438.0,39433.0,0.24860828]
[1645850160427,0.21385216,39437.0,39433.0,0.24860828]
[1645850162975,0.21485216,39437.0,39433.0,0.24860828]
[1645850163376,0.21485216,39437.0,39434.0,0.34312598]
[1645850163577,0.001,39437.0,39434.0,0.34312598]
[1645850164176,0.26385216,39440.0,39433.0,0.46293141]
[1645850164376,0.26385216,39440.0,39433.0,0.24860828]
[1645850164377,0.21385216,39439.0,39433.0,0.24860828]
[1645850164824,0.05,39440.0,39433.0,0.24860828]
[1645850165021,0.2138799,39439.0,39433.0,0.24860828]
[1645850165226,0.2138799,39439.0,39433.0,0.24920828]
[1645850165227,0.05,39439.0,39433.0,0.24920828]
[1645850165422,0.26396621,39439.0,39433.0,0.24920828]
[1645850165620,0.05,39439.0,39433.0,0.24920828]
[1645850165821,0.31703713,39441.0,39433.0,0.24920828]
[1645850166222,0.0003938,39438.0,39433.0,0.24920828]
[1645850167023,0.001,39438.0,39433.0,0.24920828]
[1645850167223,0.05,39441.0,39439.0,0.00018702]
[1645850167427,0.21401755,39440.0,39439.0,0.00018702]
[1645850168876,0.26438582,39441.0,39439.0,0.00018702]
[1645850169479,0.26401755,39441.0,39439.0,0.00018702]
[1645850172524,0.25901755,39441.0,39439.0,0.00018702]
[1645850175227,0.045,39441.0,39439.0,0.00018702]
[1645850176375,0.25901755,39441.0,39439.0,0.00018702]
[1645850176779,0.21401755,39441.0,39439.0,0.00018702]
[1645850176977,0.00036959,39442.0,39439.0,0.00018702]
[1645850177976,1.22061755,39444.0,39439.0,0.00018702]
[1645850178178,0.00036959,39442.0,39439.0,0.00018702]
[1645850179178,1.22061755,39444.0,39439.0,0.00018702]
[1645850179179,1.21561755,39444.0,39439.0,0.00018702]
[1645850179378,0.00036959,39442.0,39439.0,0.00018702]
[1645850180430,0.21401755,39445.0,39439.0,0.00018702]
[1645850180630,0.00037013,39442.0,39439.0,0.00018702]
[1645850180828,0.00037013,39442.0,39440.0,0.67102869]
[1645850181029,0.00148029,39448.0,39442.0,7.258e-05]
[1645850181225,0.00148029,39448.0,39443.0,0.377817]
[1645850181625,0.0021,39449.0,39446.0,0.22764844]
[1645850182427,0.0021,39449.0,39448.0,0.377817]
[1645850182627,0.0021,39449.0,39447.0,0.377817]
[1645850183577,0.0021,39449.0,39446.0,0.22764844]
[1645850185078,0.0021,39449.0,39442.0,7.258e-05]
[1645850185277,0.0021,39449.0,39443.0,0.377817]
[1645850185478,0.00225091,39449.0,39443.0,0.377817]
[1645850186276,0.00225091,39449.0,39444.0,0.23125052]
[1645850186478,0.0021,39449.0,39445.0,0.377817]
[1645850186678,0.00015091,39448.0,39445.0,0.377817]
[1645850187079,0.00015091,39448.0,39445.0,0.378817]
[1645850187522,0.0021,39449.0,39445.0,0.378817]
[1645850187722,0.00015091,39448.0,39445.0,0.378817]
[1645850188327,0.00015091,39448.0,39445.0,0.377817]
[1645850188824,0.0021,39449.0,39443.0,0.377817]
[1645850189124,0.00039426,39448.0,39442.0,7.258e-05]
[1645850189524,0.1,39443.0,39442.0,7.258e-05]
[1645850189727,0.36820651,39443.0,39442.0,7.258e-05]
[1645850190125,0.26820651,39443.0,39442.0,7.258e-05]
[1645850190326,0.36820651,39443.0,39442.0,7.258e-05]
[1645850190980,0.37833651,39443.0,39442.0,7.258e-05]
[1645850191376,0.36820651,39443.0,39442.0,7.258e-05]
[1645850191776,0.42833651,39443.0,39442.0,7.258e-05]
[1645850192078,0.41820651,39443.0,39442.0,7.258e-05]
[1645850192975,0.41920651,39443.0,39442.0,7.258e-05]
[1645850194381,0.41820651,39443.0,39442.0,7.258e-05]
[1645850195026,0.41920651,39443.0,39442.0,7.258e-05]
[1645850196027,0.41071261,39443.0,39442.0,7.258e-05]
[1645850196427,0.40971261,39443.0,39442.0,7.258e-05]
[1645850197029,0.31071261,39443.0,39442.0,7.258e-05]
[1645850198230,0.30971261,39443.0,39442.0,7.258e-05]
[1645850199076,0.31071261,39443.0,39442.0,7.258e-05]
[1645850200278,0.30971261,39443.0,39442.0,7.258e-05]
[1645850200980,0.31071261,39443.0,39442.0,7.258e-05]
[1645850201885,0.001,39443.0,39442.0,7.258e-05]
[1645850202082,0.001,39443.0,39442.0,0.37788958]
[1645850202530,0.00036821,39444.0,39443.0,0.55046111]
[1645850202730,0.00036821,39444.0,39443.0,0.92827811]
[1645850203232,0.0021,39449.0,39443.0,0.92827811]
[1645850203430,0.0021,39449.0,39444.0,0.34312598]
[1645850203431,0.0003682,39445.0,39444.0,0.34312598]
[1645850203630,0.00161889,39449.0,39445.0,0.6]
[1645850203833,0.00161889,39449.0,39443.0,0.34358709]
[1645850204234,3.0,39450.0,39446.0,0.15]
[1645850204432,3.0,39450.0,39447.0,0.61918598]
[1645850204633,3.0,39450.0,39449.0,0.02536]
[1645850204832,3.0,39450.0,39449.0,1.55678298]
[1645850205033,3.0,39450.0,39449.0,1.82088774]
[1645850205234,3.0,39450.0,39449.0,2.01191546]
[1645850205435,3.0,39450.0,39449.0,2.83591546]
[1645850205633,3.0,39450.0,39449.0,2.79105485]
[1645850206076,3.0,39450.0,39449.0,2.8216107]
[1645850206273,3.0,39450.0,39449.0,2.26221205]
[1645850206476,3.0,39450.0,39449.0,2.21221205]
[1645850206781,3.0,39450.0,39449.0,1.9983107]
[1645850207175,3.0,39450.0,39449.0,1.84521148]
[1645850208475,3.0,39450.0,39449.0,3.9322699]
[1645850208874,3.0,39450.0,39449.0,3.8822699]
[1645850209076,3.0,39450.0,39449.0,3.8842699]
[1645850210326,3.0,39450.0,39449.0,3.61518218]
[1645850210633,3.0,39450.0,39449.0,0.76048]
[1645850212826,3.0,39450.0,39449.0,1.138297]
[1645850213027,3.0,39450.0,39449.0,1.1388481]
[1645850214276,3.0,39450.0,39449.0,1.1378481]
[1645850214676,3.0,39450.0,39449.0,0.7600311]
[1645850215075,2.995,39450.0,39449.0,0.7600311]
[1645850217084,2.996,39450.0,39449.0,0.7600311]
[1645850218332,2.995,39450.0,39449.0,0.7600311]
[1645850218534,2.995,39450.0,39449.0,1.1378481]
[1645850219033,2.995,39450.0,39449.0,1.1388481]
[1645850220335,2.995,39450.0,39449.0,1.1378481]
[1645850221077,2.995,39450.0,39449.0,1.33881433]
[1645850221278,2.995,39450.0,39449.0,1.1388481]
[1645850221476,2.995,39450.0,39449.0,1.33881433]
[1645850221677,2.995,39450.0,39449.0,1.1388481]
[1645850221877,2.995,39450.0,39449.0,1.33881433]
[1645850222080,2.995,39450.0,39449.0,1.1388481]
[1645850222579,2.995,39450.0,39449.0,1.33781433]
[1645850222981,2.995,39450.0,39449.0,1.1378481]
[1645850223180,2.995,39450.0,39449.0,1.1388481]
[1645850224381,2.995,39450.0,39449.0,1.1378481]
[1645850224826,2.995,39450.0,39449.0,1.33781455]
[1645850225031,2.995,39450.0,39449.0,1.33881455]
[1645850226329,2.995,39450.0,39449.0,1.33781455]
[1645850227328,2.42354188,39450.0,39449.0,1.33781455]
[1645850228773,1.49430036,39450.0,39449.0,1.33781455]
[1645850229174,1.49430036,39450.0,39449.0,1.33981455]
[1645850230376,1.49430036,39450.0,39449.0,1.33781455]
[1645850230774,0.77999037,39450.0,39449.0,1.33781455]
[1645850231177,0.77999037,39450.0,39449.0,1.1398481]
[1645850232434,0.77999037,39450.0,39449.0,1.1378481]
[1645850232838,0.77999037,39450.0,39449.0,1.1373995]
[1645850233235,0.77999037,39450.0,39449.0,1.3393581]
[1645850233438,0.77999037,39450.0,39449.0,1.1393995]
[1645850234037,0.77999037,39450.0,39449.0,1.33935799]
[1645850234336,0.77999037,39450.0,39449.0,1.1373995]
[1645850234536,0.77999037,39450.0,39449.0,1.33735799]
[1645850237075,0.77999037,39450.0,39449.0,1.34035799]
[1645850238477,0.77999037,39450.0,39449.0,1.33735799]
[1645850239077,0.77999037,39450.0,39449.0,1.33935799]
[1645850240430,0.77999037,39450.0,39449.0,1.33735799]
[1645850241230,0.77999037,39450.0,39449.0,1.34035799]
[1645850242430,0.77999037,39450.0,39449.0,1.33735799]
[1645850242629,0.77999037,39450.0,39449.0,1.69085481]
[1645850242830,0.77999037,39450.0,39449.0,1.33735799]
[1645850243229,0.77999037,39450.0,39449.0,1.33935799]
[1645850243473,0.77999037,39450.0,39449.0,1.69285481]
[1645850243674,0.77999037,39450.0,39449.0,1.33935799]
[1645850244274,0.77999037,39450.0,39449.0,1.55325934]
[1645850244476,0.77999037,39450.0,39449.0,2.32455934]
[1645850244676,0.77999037,39450.0,39449.0,1.55125934]
[1645850244879,0.77999037,39450.0,39449.0,1.33735799]
[1645850245077,0.77999037,39450.0,39449.0,1.69085481]
[1645850245682,0.77999037,39450.0,39449.0,2.7320065]
[1645850245878,0.77999037,39450.0,39449.0,1.9587065]
[1645850246081,0.77999037,39450.0,39449.0,1.69085481]
[1645850246279,0.77999037,39450.0,39449.0,1.38735799]
[1645850246681,0.77999037,39450.0,39449.0,2.06227684]
[1645850247226,0.77999037,39450.0,39449.0,2.06427684]
[1645850248024,0.77999037,39450.0,39449.0,1.38935799]
[1645850248330,0.77999037,39450.0,39449.0,3.2449128]
[1645850248524,0.77999037,39450.0,39449.0,3.24245534]
[1645850248926,0.77999037,39450.0,39449.0,2.91792043]
[1645850249124,0.77999037,39450.0,39449.0,2.34642043]
[1645850249325,0.77999037,39450.0,39449.0,3.70973597]
[1645850249625,0.77999037,39450.0,39449.0,3.93679682]
[1645850249825,0.77999037,39450.0,39449.0,3.5833]
[1645850250426,0.77999037,39450.0,39449.0,3.5813]
[1645850250626,0.77999037,39450.0,39449.0,3.20680495]
[1645850250830,0.06583,39450.0,39449.0,3.20680495]
[1645850251279,0.0011,39454.0,39450.0,1.94866]
[1645850251482,0.0011,39454.0,39452.0,1.50701596]
[1645850251678,0.0011,39454.0,39452.0,2.31903596]
[1645850251880,0.0011,39454.0,39452.0,2.51899445]
[1645850252279,0.0011,39454.0,39452.0,3.17732888]
[1645850252479,0.0011,39454.0,39452.0,2.80293725]
[1645850252679,0.00149423,39454.0,39452.0,3.40434649]
[1645850253278,0.00149423,39454.0,39452.0,3.40728805]
[1645850253680,0.0011,39454.0,39452.0,2.7744153]
[1645850254080,0.0011,39454.0,39452.0,3.40728288]
[1645850254479,0.0011,39454.0,39452.0,2.7714153]
[1645850254928,0.0011,39454.0,39452.0,3.04177707]
[1645850255130,0.00033181,39454.0,39452.0,2.7764153]
[1645850255329,0.00033181,39454.0,39453.0,1.05447577]
[1645850255529,0.00033181,39454.0,39453.0,2.51897445]
[1645850255831,0.00033181,39454.0,39453.0,1.74567445]
[1645850256429,0.00033181,39454.0,39453.0,2.51897445]
[1645850256631,0.00033181,39454.0,39453.0,1.74567445]
[1645850257432,0.13002,39468.0,39467.0,0.00615452]
[1645850257632,0.1199,39468.0,39467.0,0.00615452]
[1645850257833,0.1149,39468.0,39467.0,0.00615452]
[1645850258233,0.2372521,39469.0,39467.0,0.00615452]
[1645850258476,0.0132,39469.0,39467.0,0.00615452]
[1645850258879,0.01356854,39469.0,39467.0,0.00615452]
[1645850259681,0.0132,39469.0,39467.0,0.00615452]
[1645850264834,0.20565791,39468.0,39467.0,0.00615452]
[1645850266082,0.01358286,39469.0,39467.0,0.00615452]
[1645850266983,0.0132,39469.0,39467.0,0.00615452]
[1645850268486,0.0132,39469.0,39468.0,0.377817]
[1645850268985,0.0132,39469.0,39467.0,0.00615452]
[1645850269188,0.0132,39469.0,39468.0,0.377817]
[1645850269387,0.0132,39469.0,39468.0,0.378817]
[1645850269583,0.0132,39469.0,39468.0,1.139827]
[1645850269847,0.0132,39469.0,39468.0,1.49494842]
[1645850270245,0.0132,39469.0,39468.0,2.26824842]
[1645850270452,0.0132,39469.0,39468.0,2.46638335]
[1645850270646,0.0132,39469.0,39468.0,1.69208335]
[1645850270847,0.00467749,39470.0,39469.0,0.00267697]
[1645850271046,0.00467749,39470.0,39469.0,1.50672539]
[1645850271247,0.00467749,39470.0,39469.0,1.69474032]
[1645850271545,0.00467749,39470.0,39469.0,1.31692332]
[1645850271750,0.00467749,39470.0,39469.0,1.3396189]
[1645850271751,0.0043,39470.0,39469.0,1.3396189]
[1645850272947,0.0043,39470.0,39469.0,0.9618019]
[1645850273578,0.0043,39470.0,39469.0,0.76366697]
[1645850276682,0.055,39470.0,39469.0,0.76366697]
[1645850277332,0.22309404,39470.0,39469.0,0.76366697]
[1645850277732,0.27309404,39470.0,39469.0,0.76366697]
[1645850279231,0.27509404,39470.0,39469.0,0.76366697]
[1645850280633,0.27309404,39470.0,39469.0,0.76366697]
[1645850281689,0.105,39470.0,39469.0,0.76366697]
[1645850283292,0.055,39470.0,39469.0,0.76366697]
[1645850283692,0.0043,39470.0,39469.0,0.76366697]
[1645850285131,0.2543,39470.0,39469.0,0.76366697]
[1645850285333,0.2563,39470.0,39469.0,0.76366697]
[1645850286735,0.2543,39470.0,39469.0,0.76366697]
[1645850287339,0.2563,39470.0,39469.0,0.76366697]
[1645850288577,0.2543,39470.0,39469.0,0.76366697]
[1645850289277,0.2563,39470.0,39469.0,0.76366697]
[1645850290479,0.2543,39470.0,39469.0,0.76366697]
[1645850295442,0.2563,39470.0,39469.0,0.76366697]
[1645850296688,0.2543,39470.0,39469.0,0.76366697]
[1645850297085,0.3043,39470.0,39469.0,0.76366697]
[1645850297287,0.61448867,39470.0,39469.0,0.76366697]
[1645850297487,0.66518867,39470.0,39469.0,0.76354742]
[1645850297692,0.93268937,39470.0,39469.0,0.76354742]
[1645850297884,0.66518867,39470.0,39469.0,0.76354742]
[1645850298484,0.67530867,39470.0,39469.0,0.76354742]
[1645850299285,0.67789244,39470.0,39469.0,0.76354742]
[1645850299738,0.02536,39468.0,39456.0,0.21386643]
[1645850299941,0.03594,39463.0,39455.0,0.26386643]
[1645850300138,0.1,39459.0,39454.0,0.21386643]
[1645850300441,0.0507,39458.0,39453.0,0.21386643]
[1645850300638,0.0507,39458.0,39451.0,0.21386643]
[1645850300837,0.18351319,39457.0,39450.0,0.21386643]
[1645850301138,0.0507,39456.0,39451.0,0.21386643]
[1645850301639,0.0507,39456.0,39448.0,0.26733304]
[1645850301640,0.0507,39456.0,39450.0,0.21386643]
[1645850302237,0.00037638,39455.0,39450.0,0.21386643]
[1645850302437,0.00037638,39455.0,39450.0,0.420755]
[1645850302738,0.00037638,39455.0,39451.0,0.21386643]
[1645850303138,0.0507,39456.0,39451.0,0.21386643]
[1645850303340,0.00037639,39455.0,39451.0,0.21386643]
[1645850303883,0.00037639,39455.0,39450.0,0.420755]
[1645850304086,0.00037639,39455.0,39451.0,0.21386643]
[1645850304283,0.0507,39456.0,39450.0,0.420755]
[1645850304484,0.00037635,39454.0,39450.0,0.420755]
[1645850305489,0.0507,39456.0,39450.0,0.420755]
[1645850305490,0.05022722,39456.0,39450.0,0.420755]
[1645850305786,0.05022722,39456.0,39450.0,0.20688857]
[1645850305787,0.00037636,39454.0,39450.0,0.20688857]
[1645850306185,0.00037636,39454.0,39451.0,0.21386643]
[1645850306385,0.00037636,39454.0,39450.0,0.420755]
[1645850306585,0.25837082,39457.0,39450.0,0.420755]
[1645850307436,0.25937082,39457.0,39450.0,0.420755]
[1645850308042,0.25937082,39457.0,39450.0,0.20688857]
[1645850308043,0.00037634,39456.0,39450.0,0.20688857]
[1645850309039,0.25837082,39457.0,39450.0,0.20688857]
[1645850309340,0.00137634,39456.0,39450.0,0.20688857]
[1645850309941,0.00137634,39456.0,39446.0,0.37656643]
[1645850310141,0.00137634,39456.0,39447.0,0.21386643]
[1645850310343,0.001,39456.0,39446.0,0.32656643]
[1645850310547,0.00137634,39456.0,39446.0,0.32656643]
[1645850310743,0.00037634,39456.0,39446.0,0.32656643]
[1645850310988,0.00037634,39456.0,39451.0,0.17401929]
[1645850311388,0.001,39456.0,39451.0,0.17401929]
[1645850311788,0.00137635,39456.0,39451.0,0.17401929]
[1645850312587,0.20837082,39457.0,39451.0,0.17401929]
[1645850312788,0.00037635,39456.0,39451.0,0.17401929]
[1645850313388,0.00037635,39456.0,39451.0,0.17501929]
[1645850313790,0.20837082,39457.0,39451.0,0.17501929]
[1645850314089,0.00037635,39456.0,39451.0,0.17501929]
[1645850314731,0.00037635,39456.0,39451.0,0.17401929]
[1645850315135,0.45837082,39457.0,39451.0,0.17401929]
[1645850315333,0.00037635,39456.0,39451.0,0.17401929]
[1645850316234,0.45837082,39457.0,39451.0,0.17401929]
[1645850316432,0.00037635,39456.0,39451.0,0.17401929]
[1645850317434,0.17220387,39460.0,39451.0,0.17401929]
[1645850317634,0.00037635,39456.0,39451.0,0.17401929]
[1645850318234,0.21758022,39460.0,39451.0,0.17401929]
[1645850319384,0.21858022,39460.0,39451.0,0.17401929]
[1645850320782,0.21758022,39460.0,39451.0,0.17401929]
[1645850321183,0.21758022,39460.0,39449.0,0.21386643]
[1645850322442,0.00039757,39458.0,39449.0,0.21386643]
[1645850323445,0.21758022,39460.0,39449.0,0.21386643]
[1645850323446,0.21758022,39460.0,39449.0,0.21486643]
[1645850323647,0.25,39458.0,39449.0,0.21486643]
[1645850323844,0.25039757,39458.0,39449.0,0.21486643]
[1645850324644,0.25,39458.0,39449.0,0.21486643]
[1645850324843,0.25039757,39458.0,39449.0,0.21486643]
[1645850325445,0.25039757,39458.0,39450.0,0.35899222]
[1645850325644,0.25039757,39458.0,39450.0,0.21386643]
[1645850325844,0.25,39458.0,39450.0,0.57285865]
[1645850326091,0.25039757,39458.0,39450.0,0.57285865]
[1645850327092,0.25,39458.0,39450.0,0.57285865]
[1645850327293,0.25039757,39458.0,39450.0,0.57285865]
[1645850327494,0.25039757,39458.0,39450.0,0.21386643]
[1645850328194,0.25,39458.0,39450.0,0.21386643]
[1645850328594,0.25039757,39458.0,39450.0,0.57285865]
[1645850329398,0.25,39458.0,39450.0,0.57385865]
[1645850329838,0.25039757,39458.0,39450.0,0.57385865]
[1645850330739,0.25,39458.0,39450.0,0.57285865]
[1645850330938,0.25039757,39458.0,39450.0,0.21386643]
[1645850331536,0.25039757,39458.0,39450.0,0.21486643]
[1645850331736,0.18098748,39454.0,39450.0,0.21486643]
[1645850332139,0.18098748,39454.0,39450.0,0.001]
[1645850332342,0.28172748,39454.0,39450.0,0.001]
[1645850332540,0.33172748,39454.0,39450.0,0.001]
[1645850332738,0.33172748,39454.0,39448.0,0.00039767]
[1645850332939,0.0507,39453.0,39448.0,0.00039767]